[Event "CZE Extraliga 2021-22"]
[Site "Czech Republic"]
[Date "2021.10.17"]
[Round "2.4"]
[White "FMA7 Szotkowski Jakub IM 2348"]
[Black "DPP5 Miesbauer Jan FM 2410"]
[Result "0-1"]
[ECO "E01"]
[WhiteElo "2348"]
[BlackElo "2410"]
[Annotator "NA"]
[PlyCount "76"]
[EventDate "2021.10.17"]
[EventCountry "CZE"]
[SourceTitle "playchess.com"]
[Source "ChessBase"]
[SourceQuality "1"]
[TimeControl "40/5400+30:1800+30"]

1. d4 {[%emt 0:00:09]} Nf6 {[%emt 0:00:34]} 2. c4 {[%emt 0:00:16]} e6 {[%emt 0:02:45]} 3. g3 {[%emt 0:00:36]} d5 {[%emt 0:02:01]} 4. Bg2 {[%emt 0:00:17]} Bb4+ {[%emt 0:03:14]} 5. Bd2 {[%emt 0:00:22]} a5 {[%emt 0:00:26]} 6. Nf3 {[%emt 0:05:15]} O-O {[%emt 0:00:37]} 7. O-O {[%emt 0:00:58]} Nc6 {[%emt 0:05:40]} 8. a3 {[%emt 0:05:16]} Bd6 {[%emt 0:00:57]} 9. Qc2 {[%emt 0:08:42]} Re8 {[%emt 0:06:46]} 10. Rd1 {[%emt 0:04:52]} Bd7 {[%emt 0:03:27]} 11. Nc3 {[%emt 0:06:21]} dxc4 {[%emt 0:02:58]} 12. e4 {[%emt 0:01:35]} e5 {[%emt 0:04:02]} 13. dxe5 {[%emt 0:08:23]} Nxe5 {[%emt 0:00:14]} 14. Nxe5 {[%emt 0:00:10]} Bxe5 {[%emt 0:00:34]} 15. Bg5 {[%emt 0:00:56]} h6 {[%emt 0:02:56]} 16. Bxf6 {[%emt 0:01:20]} Bxf6 {[%emt 0:00:06]} 17. Bh3 {[%emt 0:01:22]} Bxh3 {[%emt 0:00:22]} 18. Rxd8 {[%emt 0:00:18]} Raxd8 {[%emt 0:00:03]} 19. Nd5 {[%emt 0:09:54]} Be5 {[%emt 0:00:08]} 20. Rd1 {[%emt 0:13:00]} c6 {[%emt 0:06:32]} 21. Ne3 {[%emt 0:01:56]} b5 {[%emt 0:00:42]} 22. Rd2 {[%emt 0:08:13]} a4 {[%emt 0:05:57]} 23. Qd1 {[%emt 0:04:27]} Bf6 {[%emt 0:01:32]} 24. Rd6 {[%emt 0:02:32]} Be6 {[%emt 0:09:44]} 25. e5 {[%emt 0:04:38]} Be7 {[%emt 0:00:08]} 26. Rd4 {[%emt 0:00:22]} Rc8 {[%emt 0:02:32]} 27. Qf3 {[%emt 0:08:16]} Bc5 {[%emt 0:03:12]} 28. Rd1 {[%emt 0:00:46]} c3 {[%emt 0:01:07]} 29. bxc3 {[%emt 0:00:16]} Bxa3 {[%emt 0:00:13]} 30. Nf5 {[%emt 0:00:15]} Bf8 {[%emt 0:01:04]} 31. Nd6 {[%emt 0:02:26]} Bxd6 {[%emt 0:00:26]} 32. exd6 {[%emt 0:00:05]} Red8 {[%emt 0:00:20]} 33. Qe3 {[%emt 0:01:29]} Bb3 {[%emt 0:05:14]} 34. Rd2 {[%emt 0:01:15]} Ra8 {[%emt 0:00:54]} 35. d7 {[%emt 0:00:30]} a3 {[%emt 0:00:28]} 36. Qe1 {[%emt 0:00:30]} a2 {[%emt 0:00:13]} 37. Qa1 {[%emt 0:00:03]} Ra7 {[%emt 0:00:19]} 38. Kg2 {[%emt 0:00:58]} Rdxd7 {[%emt 0:00:41]} 0-1

[Event "CZE Extraliga 2021-22"]
[Site "Czech Republic"]
[Date "2021.10.17"]
[Round "2.4"]
[White "Mica, Marek"]
[Black "Jurcik, Marian"]
[Result "1-0"]
[ECO "E00"]
[WhiteElo "2321"]
[BlackElo "2406"]
[Annotator "NA"]
[PlyCount "111"]
[EventDate "2021.10.17"]
[EventCountry "CZE"]
[SourceTitle "playchess.com"]
[Source "ChessBase"]
[SourceQuality "1"]
[TimeControl "40/5400+30:1800+30"]

1. d4 e6 2. c4 Bb4+ 3. Nd2 c5 4. a3 Bxd2+ 5. Qxd2 cxd4 6. Nf3 Nf6 7. Nxd4 O-O 8. g3 d5 9. Bg2 e5 10. Nb5 d4 11. f4 Ng4 12. fxe5 Ne3 13. Bf3 Nxc4 14. Qxd4 Qxd4 15. Nxd4 Nxe5 16. Bf4 Nxf3+ 17. exf3 Nc6 18. Nxc6 bxc6 19. Rc1 Re8+ 20. Kf2 Ba6 21. Rhe1 Rxe1 22. Rxe1 Bc4 23. Re7 a5 24. Bd2 a4 25. Bc3 Bd5 26. g4 h6 27. f4 Rd8 28. f5 Bb3 29. h4 h5 30. g5 Rd5 31. f6 Rf5+ 32. Ke3 gxf6 33. Bxf6 Rf1 34. Re8+ Kh7 35. Rh8+ Kg6 36. Rh6+ Kf5 37. Rxh5 Rh1 38. Rh8 Kg4 39. Kd4 Bc2 40. Kc5 Bg6 41. Kxc6 Rf1 42. Kb5 Rf4 43. Ka5 Rc4 44. Rb8 Rc5+ 45. Kxa4 Kxh4 46. Kb4 Rf5 47. a4 Rf4+ 48. Ka5 Kh5 49. Rb4 Rf1 50. Kb6 Ra1 51. a5 Bd3 52. Rb3 Bf1 53. Ra3 Rd1 54. a6 Rd6+ 55. Kb7 Rd7+ 56. Kb8 1-0

[Event "CZE Extraliga 2021-22"]
[Site "Czech Republic"]
[Date "2021.10.17"]
[Round "2.5"]
[White "PAR9 Jirovsky Milos GM 2452"]
[Black "NOV13 Zilka Stepan GM 2580"]
[Result "0-1"]
[ECO "A13"]
[WhiteElo "2452"]
[BlackElo "2580"]
[Annotator "NA"]
[PlyCount "70"]
[EventDate "2021.10.17"]
[EventCountry "CZE"]
[SourceTitle "playchess.com"]
[Source "ChessBase"]
[SourceQuality "1"]
[TimeControl "40/5400+30:1800+30"]

1. c4 {[%emt 0:00:07]} e6 {[%emt 0:00:13]} 2. Nf3 {[%emt 0:01:58]} d5 {[%emt 0:00:06]} 3. g3 {[%emt 0:00:39]} d4 {[%emt 0:00:54]} 4. Bg2 {[%emt 0:00:40]} Nf6 {[%emt 0:00:22]} 5. O-O {[%emt 0:01:10]} c5 {[%emt 0:00:33]} 6. d3 {[%emt 0:05:10]} Nc6 {[%emt 0:00:26]} 7. Na3 {[%emt 0:09:12]} Bd6 {[%emt 0:02:30]} 8. e3 {[%emt 0:02:47]} O-O {[%emt 0:00:36]} 9. exd4 {[%emt 0:07:27]} cxd4 {[%emt 0:00:18]} 10. Nc2 {[%emt 0:00:15]} e5 {[%emt 0:00:05]} 11. b4 {[%emt 0:10:47]} Re8 {[%emt 0:00:05]} 12. Rb1 {[%emt 0:02:52]} Bg4 {[%emt 0:00:18]} 13. h3 {[%emt 0:01:08]} Bh5 {[%emt 0:00:08]} 14. g4 {[%emt 0:02:42]} Bg6 {[%emt 0:00:08]} 15. Nh4 {[%emt 0:01:22]} Ne4 {[%emt 0:00:05]} 16. dxe4 {[%emt 0:03:10]} Qxh4 {[%emt 0:00:19]} 17. c5 {[%emt 0:00:46]} Be7 {[%emt 0:08:02]} 18. Ne1 {[%emt 0:00:45]} a6 {[%emt 0:09:55]} 19. Nd3 {[%emt 0:06:42]} Bg5 {[%emt 0:01:23]} 20. a4 {[%emt 0:02:51]} Bxc1 {[%emt 0:02:40]} 21. Rxc1 {[%emt 0:01:29]} h5 {[%emt 0:03:52]} 22. b5 {[%emt 0:18:30]} axb5 {[%emt 0:01:07]} 23. axb5 {[%emt 0:00:09]} hxg4 {[%emt 0:01:52]} 24. Qxg4 {[%emt 0:14:21]} Qxg4 {[%emt 0:00:05]} 25. hxg4 {[%emt 0:00:02]} Na5 {[%emt 0:00:06]} 26. g5 {[%emt 0:02:00]} Bh5 {[%emt 0:01:41]} 27. Rfe1 {[%emt 0:00:14]} Bg4 {[%emt 0:00:40]} 28. f4 {[%emt 0:02:15]} exf4 {[%emt 0:02:00]} 29. Kf2 {[%emt 0:01:14]} Bd7 {[%emt 0:05:51]} 30. Rb1 {[%emt 0:00:16]} Nc4 {[%emt 0:00:21]} 31. e5 {[%emt 0:02:17]} Ra2+ {[%emt 0:04:08]} 32. Re2 {[%emt 0:00:33]} Rxe2+ {[%emt 0:00:13]} 33. Kxe2 {[%emt 0:00:01]} Nxe5 {[%emt 0:00:07]} 34. Nxe5 {[%emt 0:00:48]} Rxe5+ {[%emt 0:00:11]} 35. Kf2 {[%emt 0:00:04]} Rxc5 {[%emt 0:00:37]} 0-1

[Event "CZE Extraliga 2021-22"]
[Site "Czech Republic"]
[Date "2021.10.17"]
[Round "2.5"]
[White "Jansa, Vlastimil"]
[Black "Malik, Jan"]
[Result "1/2-1/2"]
[ECO "B90"]
[WhiteElo "2420"]
[BlackElo "2288"]
[Annotator "NA"]
[PlyCount "102"]
[EventDate "2021.10.17"]
[EventCountry "CZE"]
[SourceTitle "playchess.com"]
[Source "ChessBase"]
[SourceQuality "1"]
[TimeControl "40/5400+30:1800+30"]

1. e4 {[%emt 0:00:03]} c5 {[%emt 0:00:05]} 2. Nf3 {[%emt 0:00:07]} d6 {[%emt 0:00:04]} 3. d4 {[%emt 0:00:07]} cxd4 {[%emt 0:00:05]} 4. Nxd4 {[%emt 0:00:02]} Nf6 {[%emt 0:00:07]} 5. Nc3 {[%emt 0:00:03]} a6 {[%emt 0:00:09]} 6. Bd3 g6 {[%emt 0:01:28]} 7. O-O {[%emt 0:03:32]} Bg7 {[%emt 0:00:34]} 8. Re1 {[%emt 0:00:48]} O-O {[%emt 0:00:44]} 9. Bf1 {[%emt 0:01:32]} Nc6 {[%emt 0:01:41]} 10. Nb3 {[%emt 0:01:21]} Bg4 {[%emt 0:03:37]} 11. f3 {[%emt 0:02:12]} Bd7 {[%emt 0:02:09]} 12. Be3 {[%emt 0:04:52]} Rc8 {[%emt 0:03:20]} 13. Nd5 {[%emt 0:15:48]} Nxd5 {[%emt 0:03:39]} 14. exd5 {[%emt 0:00:06]} Ne5 {[%emt 0:00:55]} 15. Bd4 {[%emt 0:02:43]} b5 {[%emt 0:07:16]} 16. c3 {[%emt 0:09:05]} Re8 {[%emt 0:01:05]} 17. Nd2 {[%emt 0:03:00]} Qc7 {[%emt 0:02:59]} 18. h3 {[%emt 0:08:50]} Bh6 {[%emt 0:03:41]} 19. Ne4 {[%emt 0:17:52]} f5 {[%emt 0:04:06]} 20. Nc5 {[%emt 0:03:13]} Nxf3+ {[%emt 0:08:09]} 21. Qxf3 {[%emt 0:00:06]} dxc5 {[%emt 0:00:07]} 22. Be5 {[%emt 0:00:47]} Qb6 {[%emt 0:01:10]} 23. h4 {[%emt 0:01:48]} Bg7 {[%emt 0:01:53]} 24. h5 {[%emt 0:00:48]} c4+ {[%emt 0:00:48]} 25. Kh1 {[%emt 0:00:32]} Bxe5 {[%emt 0:01:43]} 26. Rxe5 {[%emt 0:00:04]} Qf6 {[%emt 0:00:31]} 27. Rae1 {[%emt 0:00:23]} g5 {[%emt 0:12:27]} 28. g3 {[%emt 0:01:25]} Kh8 {[%emt 0:03:13]} 29. Bg2 {[%emt 0:01:22]} e6 {[%emt 0:03:37]} 30. dxe6 {[%emt 0:04:12]} Rxe6 {[%emt 0:01:43]} 31. Rxe6 {[%emt 0:00:51]} Bxe6 {[%emt 0:00:02]} 32. Qb7 {[%emt 0:00:26]} Rf8 {[%emt 0:18:16]} 33. Qxa6 {[%emt 0:02:52]} Bd7 {[%emt 0:00:45]} 34. Qxf6+ {[%emt 0:06:24]} Rxf6 {[%emt 0:00:02]} 35. Rd1 {[%emt 0:00:23]} Be6 {[%emt 0:02:46]} 36. Rd6 {[%emt 0:02:30]} Kg7 {[%emt 0:00:11]} 37. Rb6 {[%emt 0:01:36]} Bd5 {[%emt 0:03:38]} 38. Rxb5 {[%emt 0:01:26]} Bxg2+ {[%emt 0:00:07]} 39. Kxg2 {[%emt 0:00:17]} Kh6 {[%emt 0:00:09]} 40. Rc5 {[%emt 0:03:24]} Rb6 {[%emt 0:06:12]} 41. Rxf5 {[%emt 0:32:28]} Rxb2+ {[%emt 0:30:11]} 42. Kf3 {[%emt 0:00:00]} Rc2 {[%emt 0:00:00]} 43. Rf6+ {[%emt 0:00:00]} Kg7 {[%emt 0:00:00]} 44. Rc6 {[%emt 0:00:00]} Rxc3+ {[%emt 0:00:00]} 45. Kg4 {[%emt 0:00:00]} Ra3 {[%emt 0:00:00]} 46. h6+ {[%emt 0:00:00]} Kf7 {[%emt 0:00:00]} 47. Kh5 {[%emt 0:00:00]} Rxg3 {[%emt 0:00:00]} 48. Rxc4 {[%emt 0:00:00]} Ra3 {[%emt 0:00:00]} 49. Rc2 {[%emt 0:00:00]} Ra5 {[%emt 0:00:00]} 50. Rf2+ {[%emt 0:00:00]} Ke7 {[%emt 0:00:00]} 51. Rb2 {[%emt 0:00:00]} Kf6 {[%emt 0:00:00]} 1/2-1/2

[Event "CZE Extraliga 2021-22"]
[Site "Czech Republic"]
[Date "2021.10.17"]
[Round "2.5"]
[White "Jurcik, Martin"]
[Black "Rabatin, Jakub"]
[Result "0-1"]
[ECO "B54"]
[WhiteElo "2401"]
[BlackElo "2337"]
[Annotator "NA"]
[PlyCount "96"]
[EventDate "2021.10.17"]
[EventCountry "CZE"]
[SourceTitle "playchess.com"]
[Source "ChessBase"]
[SourceQuality "1"]
[TimeControl "40/5400+30:1800+30"]

1. e4 c5 2. Nf3 d6 3. d4 cxd4 4. Nxd4 Nf6 5. f3 Nc6 6. c4 Nxd4 7. Qxd4 g6 8. Nc3 Bg7 9. Be3 O-O 10. Qd2 Bd7 11. Be2 a5 12. b3 Bc6 13. O-O Nd7 14. Rab1 Nc5 15. a3 a4 16. b4 Nb3 17. Qd3 e5 18. Bd1 Nd4 19. Bxd4 exd4 20. Ne2 Bd7 21. Bc2 b5 22. Nxd4 Qb6 23. Rbd1 Rfc8 24. Kh1 Rxc4 25. Ne2 Be6 26. Qd2 Rac8 27. Bd3 R4c7 28. h3 Bb3 29. Rb1 Bc2 30. Rbc1 Bxd3 31. Qxd3 Rxc1 32. Rxc1 Rxc1+ 33. Nxc1 Qf2 34. Ne2 Qf1+ 35. Kh2 Be5+ 36. f4 Bxf4+ 37. Nxf4 Qxf4+ 38. Kg1 Qe5 39. h4 h5 40. g3 Kg7 41. Kg2 Qb2+ 42. Kh3 Qb3 43. Qxd6 Qxa3 44. Qe5+ Kh7 45. Qxb5 Qf3 46. Kh2 Qf2+ 47. Kh1 a3 48. Qe5 Qf1+ 0-1

[Event "CZE Extraliga 2021-22"]
[Site "Czech Republic"]
[Date "2021.10.17"]
[Round "2.5"]
[White "Burdalev, Kirill"]
[Black "Mrazek, Lumir"]
[Result "1-0"]
[ECO "A49"]
[WhiteElo "2374"]
[BlackElo "2303"]
[Annotator "NA"]
[PlyCount "73"]
[EventDate "2021.10.17"]
[EventCountry "CZE"]
[SourceTitle "playchess.com"]
[Source "ChessBase"]
[SourceQuality "1"]
[TimeControl "40/5400+30:1800+30"]

1. d4 {[%emt 0:00:04]} Nf6 {[%emt 0:00:15]} 2. Nf3 {[%emt 0:00:25]} g6 {[%emt 0:01:03]} 3. g3 {[%emt 0:00:41]} Bg7 {[%emt 0:00:25]} 4. Bg2 {[%emt 0:00:46]} O-O {[%emt 0:00:31]} 5. O-O {[%emt 0:00:21]} d6 {[%emt 0:02:40]} 6. c4 {[%emt 0:03:47]} c6 {[%emt 0:04:55]} 7. Nc3 {[%emt 0:01:02]} Qc7 {[%emt 0:00:51]} 8. e4 {[%emt 0:09:18]} e5 {[%emt 0:04:52]} 9. h3 {[%emt 0:02:33]} Re8 {[%emt 0:16:51]} 10. Be3 {[%emt 0:01:50]} Nbd7 {[%emt 0:05:49]} 11. Re1 {[%emt 0:10:41]} h6 {[%emt 0:02:13]} 12. Qd2 {[%emt 0:03:14]} Kh7 {[%emt 0:09:12]} 13. Rad1 {[%emt 0:01:07]} Nf8 {[%emt 0:00:44]} 14. b4 {[%emt 0:10:47]} Bd7 {[%emt 0:10:30]} 15. Kh2 {[%emt 0:15:52]} g5 {[%emt 0:02:25]} 16. c5 {[%emt 0:03:28]} exd4 {[%emt 0:11:49]} 17. Bxd4 {[%emt 0:05:46]} dxc5 {[%emt 0:01:20]} 18. Bxc5 {[%emt 0:01:22]} Be6 {[%emt 0:06:37]} 19. Bd6 {[%emt 0:01:16]} Qb6 {[%emt 0:00:21]} 20. Nd4 {[%emt 0:03:58]} Ng6 {[%emt 0:02:08]} 21. e5 {[%emt 0:01:55]} Nd7 {[%emt 0:04:08]} 22. f4 {[%emt 0:04:51]} gxf4 {[%emt 0:00:28]} 23. gxf4 {[%emt 0:00:04]} Nh4 {[%emt 0:01:04]} 24. Be4+ {[%emt 0:00:46]} Kh8 {[%emt 0:01:10]} 25. Rg1 {[%emt 0:01:00]} f5 {[%emt 0:03:00]} 26. Bh1 {[%emt 0:01:13]} Nf8 {[%emt 0:01:58]} 27. Na4 {[%emt 0:02:46]} Qd8 {[%emt 0:01:46]} 28. Rxg7 {[%emt 0:00:55]} Kxg7 {[%emt 0:00:05]} 29. Bxf8+ {[%emt 0:00:14]} Kh7 {[%emt 0:00:04]} 30. Nxe6 {[%emt 0:01:17]} Qxd2+ {[%emt 0:00:08]} 31. Rxd2 {[%emt 0:00:02]} Rxe6 {[%emt 0:00:15]} 32. Nc5 {[%emt 0:02:05]} Ree8 {[%emt 0:01:14]} 33. Rd7+ {[%emt 0:00:40]} Kg6 {[%emt 0:00:47]} 34. Rd6+ {[%emt 0:00:55]} Kf7 {[%emt 0:00:04]} 35. Bxh6 {[%emt 0:00:43]} a5 {[%emt 0:01:37]} 36. b5 {[%emt 0:01:07]} Rad8 {[%emt 0:01:51]} 37. Nxb7 {[%emt 0:01:55]} 1-0

[Event "CZE Extraliga 2021-22"]
[Site "Czech Republic"]
[Date "2021.10.17"]
[Round "2.6"]
[White "Bures, Jaroslav"]
[Black "Hrabusa, Matej"]
[Result "1-0"]
[ECO "A10"]
[WhiteElo "2394"]
[BlackElo "2363"]
[Annotator "NA"]
[PlyCount "131"]
[EventDate "2021.10.17"]
[EventCountry "CZE"]
[SourceTitle "playchess.com"]
[Source "ChessBase"]
[SourceQuality "1"]
[TimeControl "40/5400+30:1800+30"]

1. c4 {[%emt 0:00:06]} f5 {[%emt 0:00:09]} 2. g3 Nf6 {[%emt 0:01:33]} 3. Bg2 {[%emt 0:01:55]} g6 {[%emt 0:00:00]} 4. b3 {[%emt 0:01:56]} Bg7 {[%emt 0:00:13]} 5. Bb2 {[%emt 0:00:01]} d6 {[%emt 0:01:05]} 6. d4 {[%emt 0:04:01]} O-O {[%emt 0:01:59]} 7. Nf3 {[%emt 0:04:17]} Ne4 {[%emt 0:07:34]} 8. Nbd2 c5 {[%emt 0:05:35]} 9. O-O {[%emt 0:18:11]} Nc6 {[%emt 0:05:31]} 10. e3 {[%emt 0:01:55]} Qa5 {[%emt 0:16:09]} 11. Nxe4 {[%emt 0:12:43]} fxe4 {[%emt 0:00:05]} 12. Ne1 {[%emt 0:00:03]} cxd4 {[%emt 0:14:19]} 13. exd4 {[%emt 0:00:04]} Qb6 {[%emt 0:06:21]} 14. Nc2 {[%emt 0:00:02]} Bf5 {[%emt 0:02:06]} 15. g4 {[%emt 0:12:48]} Be6 {[%emt 0:02:38]} 16. Bxe4 {[%emt 0:08:29]} Rf4 {[%emt 0:02:19]} 17. Qd3 {[%emt 0:06:49]} Bxg4 {[%emt 0:03:43]} 18. Rae1 {[%emt 0:01:52]} Raf8 {[%emt 0:03:03]} 19. Bc1 {[%emt 0:04:40]} Rxe4 {[%emt 0:06:30]} 20. Qxe4 {[%emt 0:06:14]} Bh3 {[%emt 0:03:57]} 21. d5 {[%emt 0:01:51]} Ne5 {[%emt 0:02:13]} 22. Be3 {[%emt 0:02:55]} Qa5 {[%emt 0:06:08]} 23. f4 {[%emt 0:00:01]} Bxf1 {[%emt 0:03:58]} 24. Rxf1 {[%emt 0:00:01]} Qxa2 {[%emt 0:01:43]} 25. fxe5 {[%emt 0:00:43]} Rxf1+ {[%emt 0:00:07]} 26. Kxf1 {[%emt 0:00:00]} Bxe5 {[%emt 0:00:28]} 27. b4 {[%emt 0:04:51]} a5 {[%emt 0:00:52]} 28. bxa5 {[%emt 0:01:28]} Qxa5 {[%emt 0:00:04]} 29. h4 {[%emt 0:02:36]} Qa4 {[%emt 0:00:47]} 30. Qd3 {[%emt 0:00:22]} Qd7 {[%emt 0:00:21]} 31. Bf2 {[%emt 0:00:29]} Qg4 {[%emt 0:00:35]} 32. Nd4 {[%emt 0:00:41]} Bf6 {[%emt 0:00:35]} 33. Nf3 {[%emt 0:00:44]} Kg7 {[%emt 0:01:03]} 34. Ke2 {[%emt 0:00:46]} Qc8 {[%emt 0:00:54]} 35. Qe4 {[%emt 0:00:35]} Qa8 {[%emt 0:00:38]} 36. Nd4 {[%emt 0:02:20]} Qa2+ {[%emt 0:00:41]} 37. Qc2 {[%emt 0:00:01]} Qa1 {[%emt 0:00:24]} 38. Ne6+ {[%emt 0:00:02]} Kg8 {[%emt 0:00:38]} 39. Qb3 {[%emt 0:00:01]} Qe5+ {[%emt 0:00:38]} 40. Qe3 {[%emt 0:00:35]} Qh5+ {[%emt 0:01:51]} 41. Qf3 {[%emt 0:31:06]} Qe5+ {[%emt 0:30:24]} 42. Kf1 {[%emt 0:00:44]} Qa1+ {[%emt 0:00:00]} 43. Kg2 {[%emt 0:00:00]} Qa2 {[%emt 0:00:00]} 44. Qe4 {[%emt 0:00:00]} Qb3 {[%emt 0:00:00]} 45. Ng5 {[%emt 0:00:00]} Kh8 {[%emt 0:00:00]} 46. Bd4 {[%emt 0:00:00]} Qa2+ {[%emt 0:00:00]} 47. Kg3 {[%emt 0:00:00]} Qa3+ {[%emt 0:00:00]} 48. Qe3 {[%emt 0:00:00]} Qxe3+ {[%emt 0:00:00]} 49. Bxe3 {[%emt 0:00:00]} Kg8 {[%emt 0:00:00]} 50. Ne6 {[%emt 0:00:00]} Be5+ {[%emt 0:00:00]} 51. Kf3 {[%emt 0:00:00]} Bf6 {[%emt 0:00:00]} 52. Bg5 {[%emt 0:00:00]} Bxg5 {[%emt 0:00:00]} 53. hxg5 {[%emt 0:00:00]} b6 {[%emt 0:00:00]} 54. Nc7 {[%emt 0:00:00]} Kg7 {[%emt 0:00:00]} 55. Na8 {[%emt 0:00:00]} h6 {[%emt 0:00:00]} 56. Kf4 {[%emt 0:00:00]} h5 {[%emt 0:00:00]} 57. Nxb6 {[%emt 0:00:00]} Kf7 {[%emt 0:00:00]} 58. Na4 {[%emt 0:00:00]} Ke8 {[%emt 0:00:00]} 59. Nc3 {[%emt 0:00:00]} Kd7 {[%emt 0:00:00]} 60. Nb5 {[%emt 0:00:00]} Kc8 {[%emt 0:01:11]} 61. Nd4 {[%emt 0:00:00]} Kd7 {[%emt 0:00:10]} 62. Ne6 {[%emt 0:00:00]} Ke8 {[%emt 0:00:02]} 63. Kg3 {[%emt 0:00:00]} Kf7 {[%emt 0:00:09]} 64. Kh4 {[%emt 0:00:00]} Kg8 {[%emt 0:00:16]} 65. Nf4 {[%emt 0:00:00]} Kg7 {[%emt 0:00:58]} 66. Nxh5+ {[%emt 0:00:00]} 1-0

[Event "CZE Extraliga 2021-22"]
[Site "Czech Republic"]
[Date "2021.10.17"]
[Round "2.6"]
[White "Frank, Adam"]
[Black "Sorm, Daniel"]
[Result "1/2-1/2"]
[ECO "B15"]
[WhiteElo "2366"]
[BlackElo "2347"]
[Annotator "NA"]
[PlyCount "71"]
[EventDate "2021.10.17"]
[EventCountry "CZE"]
[SourceTitle "playchess.com"]
[Source "ChessBase"]
[SourceQuality "1"]
[TimeControl "40/5400+30:1800+30"]

1. e4 {[%emt 0:00:03]} c6 {[%emt 0:03:45]} 2. d4 {[%emt 0:00:02]} d5 {[%emt 0:00:22]} 3. Nd2 {[%emt 0:00:03]} dxe4 {[%emt 0:00:08]} 4. Nxe4 {[%emt 0:00:04]} Nf6 {[%emt 0:00:08]} 5. Nxf6+ {[%emt 0:00:04]} exf6 {[%emt 0:00:07]} 6. c3 {[%emt 0:00:03]} Bd6 {[%emt 0:00:19]} 7. Bd3 {[%emt 0:00:04]} O-O {[%emt 0:00:14]} 8. Qc2 {[%emt 0:00:06]} Kh8 {[%emt 0:00:20]} 9. Ne2 {[%emt 0:01:04]} Qc7 {[%emt 0:03:39]} 10. Be3 {[%emt 0:04:45]} Nd7 {[%emt 0:00:50]} 11. h4 {[%emt 0:02:01]} h5 {[%emt 0:02:08]} 12. O-O-O {[%emt 0:23:59]} b5 {[%emt 0:02:59]} 13. g4 {[%emt 0:02:28]} hxg4 {[%emt 0:02:33]} 14. Rdg1 {[%emt 0:02:05]} Nb6 {[%emt 0:04:36]} 15. Bf5 {[%emt 0:00:21]} Nd5 {[%emt 0:14:48]} 16. Rxg4 {[%emt 0:01:44]} Nxe3 {[%emt 0:10:07]} 17. fxe3 {[%emt 0:00:06]} Qe7 {[%emt 0:00:42]} 18. Rh3 {[%emt 0:23:53]} g6 {[%emt 0:01:00]} 19. Bxc8 {[%emt 0:00:04]} Raxc8 {[%emt 0:00:29]} 20. Nf4 {[%emt 0:01:10]} Bxf4 {[%emt 0:24:50]} 21. Rxf4 {[%emt 0:00:11]} c5 {[%emt 0:00:50]} 22. d5 {[%emt 0:06:37]} Rcd8 {[%emt 0:06:27]} 23. e4 {[%emt 0:09:03]} Kg7 {[%emt 0:06:13]} 24. Rhf3 {[%emt 0:02:16]} Rd6 {[%emt 0:02:02]} 25. Qf2 {[%emt 0:02:50]} Rb6 {[%emt 0:00:28]} 26. h5 {[%emt 0:04:42]} Rh8 {[%emt 0:00:17]} 27. hxg6 {[%emt 0:00:06]} fxg6 {[%emt 0:03:10]} 28. Rh4 {[%emt 0:00:34]} Rbb8 {[%emt 0:01:12]} 29. Rfh3 {[%emt 0:00:45]} Qe5 {[%emt 0:02:30]} 30. Rxh8 {[%emt 0:09:55]} Rxh8 {[%emt 0:00:09]} 31. Rxh8 {[%emt 0:00:02]} Kxh8 {[%emt 0:00:16]} 32. Qxc5 {[%emt 0:00:05]} Qf4+ {[%emt 0:01:13]} 33. Kd1 {[%emt 0:00:05]} Qf1+ {[%emt 0:03:33]} 34. Kd2 {[%emt 0:02:46]} Qg2+ {[%emt 0:00:13]} 35. Kc1 {[%emt 0:01:05]} Qf1+ {[%emt 0:00:31]} 36. Kd2 {[%emt 0:01:26]} 1/2-1/2

[Event "CZE Extraliga 2021-22"]
[Site "Czech Republic"]
[Date "2021.10.17"]
[Round "2.6"]
[White "OST9 Walek Petr  2245"]
[Black "LYS13 Balacek Tadeas CM 2355"]
[Result "1/2-1/2"]
[ECO "C11"]
[WhiteElo "2245"]
[BlackElo "2355"]
[Annotator "NA"]
[PlyCount "57"]
[EventDate "2021.10.17"]
[EventCountry "CZE"]
[SourceTitle "playchess.com"]
[Source "ChessBase"]
[SourceQuality "1"]
[TimeControl "40/5400+30:1800+30"]

1. e4 {[%emt 0:00:02]} e6 {[%emt 0:00:10]} 2. d4 {[%emt 0:00:09]} d5 {[%emt 0:00:07]} 3. Nc3 {[%emt 0:00:07]} Nf6 {[%emt 0:00:59]} 4. e5 {[%emt 0:00:15]} Nfd7 {[%emt 0:00:10]} 5. f4 {[%emt 0:00:10]} c5 {[%emt 0:00:11]} 6. Nf3 {[%emt 0:00:06]} Nc6 {[%emt 0:01:12]} 7. Be3 {[%emt 0:00:10]} Qb6 {[%emt 0:06:34]} 8. Na4 {[%emt 0:01:28]} Qa5+ {[%emt 0:00:30]} 9. c3 {[%emt 0:00:36]} b6 {[%emt 0:01:03]} 10. Bd2 {[%emt 0:21:39]} c4 {[%emt 0:00:57]} 11. b4 {[%emt 0:06:57]} Nxb4 {[%emt 0:00:13]} 12. cxb4 {[%emt 0:00:36]} Bxb4 {[%emt 0:00:03]} 13. Qc2 {[%emt 0:12:34]} Bxd2+ {[%emt 0:00:50]} 14. Nxd2 {[%emt 0:01:47]} b5 {[%emt 0:00:22]} 15. Nc3 {[%emt 0:03:36]} b4 {[%emt 0:00:44]} 16. Qa4 {[%emt 0:06:04]} Qxa4 {[%emt 0:15:16]} 17. Nxa4 {[%emt 0:00:04]} Bb7 {[%emt 0:00:17]} 18. Be2 {[%emt 0:12:45]} Bc6 {[%emt 0:07:02]} 19. Bd1 {[%emt 0:06:40]} Ke7 {[%emt 0:01:35]} 20. Bc2 {[%emt 0:03:38]} Rhc8 {[%emt 0:13:02]} 21. Ke2 {[%emt 0:00:58]} Rab8 {[%emt 0:07:34]} 22. Rhb1 {[%emt 0:07:01]} a5 {[%emt 0:04:47]} 23. Nf3 {[%emt 0:01:55]} f6 {[%emt 0:06:04]} 24. h4 {[%emt 0:01:25]} h6 {[%emt 0:06:36]} 25. Ke3 {[%emt 0:03:00]} Nb6 {[%emt 0:05:38]} 26. Nc5 {[%emt 0:08:03]} Nd7 {[%emt 0:00:26]} 27. Na4 {[%emt 0:00:07]} Nb6 {[%emt 0:00:05]} 28. Nc5 {[%emt 0:01:07]} Nd7 {[%emt 0:00:03]} 29. Na4 {[%emt 0:01:20]} 1/2-1/2

[Event "CZE Extraliga 2021-22"]
[Site "Czech Republic"]
[Date "2021.10.17"]
[Round "2.7"]
[White "UNI12 Vavra Pavel IM 2320"]
[Black "FMB7 Stepan Patrik  2248"]
[Result "1/2-1/2"]
[ECO "A45"]
[WhiteElo "2320"]
[BlackElo "2248"]
[Annotator "NA"]
[PlyCount "48"]
[EventDate "2021.10.17"]
[EventCountry "CZE"]
[SourceTitle "playchess.com"]
[Source "ChessBase"]
[SourceQuality "1"]
[TimeControl "40/5400+30:1800+30"]

1. d4 {[%emt 0:00:41]} Nf6 {[%emt 0:00:06]} 2. Bg5 {[%emt 0:00:06]} Ne4 {[%emt 0:00:40]} 3. Bf4 {[%emt 0:00:06]} e6 {[%emt 0:00:18]} 4. e3 {[%emt 0:02:03]} d5 {[%emt 0:00:45]} 5. Bd3 {[%emt 0:00:16]} Be7 {[%emt 0:02:15]} 6. Nd2 {[%emt 0:16:38]} f5 {[%emt 0:00:49]} 7. Nxe4 {[%emt 0:09:07]} dxe4 {[%emt 0:04:47]} 8. Bc4 {[%emt 0:00:29]} Bd6 {[%emt 0:07:21]} 9. Nh3 {[%emt 0:03:13]} O-O {[%emt 0:01:11]} 10. O-O {[%emt 0:01:52]} Nc6 {[%emt 0:03:04]} 11. a3 {[%emt 0:01:40]} Ne7 {[%emt 0:08:39]} 12. f3 {[%emt 0:01:04]} Bxf4 {[%emt 0:10:04]} 13. exf4 {[%emt 0:02:27]} Nd5 {[%emt 0:00:54]} 14. Qe2 {[%emt 0:00:44]} exf3 {[%emt 0:12:54]} 15. Rxf3 {[%emt 0:00:28]} Qf6 {[%emt 0:02:11]} 16. c3 {[%emt 0:00:24]} Bd7 {[%emt 0:00:31]} 17. Nf2 {[%emt 0:03:11]} Nb6 {[%emt 0:03:52]} 18. Bb3 {[%emt 0:01:04]} Rfe8 {[%emt 0:07:26]} 19. Re1 {[%emt 0:03:19]} Kf8 {[%emt 0:04:38]} 20. Nd3 {[%emt 0:09:13]} Bb5 {[%emt 0:17:33]} 21. Bxe6 {[%emt 0:06:25]} Nd5 {[%emt 0:00:13]} 22. Qe5 {[%emt 0:00:37]} Qxe6 {[%emt 0:02:44]} 23. Qxe6 {[%emt 0:00:46]} Rxe6 {[%emt 0:00:01]} 24. Rxe6 {[%emt 0:00:10]} Bxd3 {[%emt 0:00:07]} 1/2-1/2